[Event "Early-Titled-Tuesday-Blitz-February-06-2024"]
[Site "Chess.com"]
[Date "2024.02.06"]
[Round "9"]
[White "JaackCamel"]
[Black "Laico"]
[Result "0-1"]
[WhiteElo "2171"]
[BlackElo "2373"]
[TimeControl "180+1"]
[EndTime "9:43:27 PST"]
[Termination "Laico won by resignation"]

1. d4 {[%clk 0:03:00.9]} 1... e6 {[%clk 0:02:57.5]} 2. c4 {[%clk 0:03:00.3]}
2... f5 {[%clk 0:02:57.8]} 3. g3 {[%clk 0:02:59.8]} 3... Nf6 {[%clk 0:02:57.3]}
4. Bg2 {[%clk 0:02:59.7]} 4... Be7 {[%clk 0:02:58.2]} 5. Nf3 {[%clk 0:02:59.8]}
5... O-O {[%clk 0:02:59.1]} 6. O-O {[%clk 0:02:59.6]} 6... d6 {[%clk 0:02:59.6]}
7. Nc3 {[%clk 0:02:58.9]} 7... Nc6 {[%clk 0:02:59.4]} 8. d5 {[%clk 0:02:56.6]}
8... Ne5 {[%clk 0:02:59]} 9. dxe6 {[%clk 0:02:55.9]} 9... Bxe6 {[%clk
0:02:57.8]} 10. b3 {[%clk 0:02:55.3]} 10... c6 {[%clk 0:02:55.3]} 11. Bb2 {[%clk
0:02:53.1]} 11... Qe8 {[%clk 0:02:51.5]} 12. Qc2 {[%clk 0:02:46]} 12... Qh5
{[%clk 0:02:50.9]} 13. Nd4 {[%clk 0:02:37.4]} 13... Bd7 {[%clk 0:02:43.6]} 14.
e3 {[%clk 0:02:20.8]} 14... c5 {[%clk 0:02:33.7]} 15. Nde2 {[%clk 0:01:53.5]}
15... Nf3+ {[%clk 0:02:27]} 16. Bxf3 {[%clk 0:01:53.4]} 16... Qxf3 {[%clk
0:02:27.9]} 17. Rad1 {[%clk 0:01:42.6]} 17... Bc6 {[%clk 0:02:25]} 18. Nd5
{[%clk 0:01:42.2]} 18... Nxd5 {[%clk 0:02:25.5]} 19. cxd5 {[%clk 0:01:26.5]}
19... Bxd5 {[%clk 0:02:26.4]} 20. Rxd5 {[%clk 0:01:26.2]} 20... Qxd5 {[%clk
0:02:27.3]} 21. Nf4 {[%clk 0:01:23.2]} 21... Qf7 {[%clk 0:02:27.4]} 22. Rd1
{[%clk 0:01:20.9]} 22... Bf6 {[%clk 0:02:13.9]} 23. Nd5 {[%clk 0:01:20.9]} 23...
Bxb2 {[%clk 0:02:13.4]} 24. Qxb2 {[%clk 0:01:21]} 24... Rae8 {[%clk 0:02:11.5]}
25. Nf4 {[%clk 0:01:14.4]} 25... Qf6 {[%clk 0:02:02.4]} 26. Qd2 {[%clk
0:01:10.4]} 26... b6 {[%clk 0:01:42.8]} 27. Qd5+ {[%clk 0:01:09.1]} 27... Kh8
{[%clk 0:01:41.5]} 28. Qc6 {[%clk 0:01:07.4]} 28... d5 {[%clk 0:01:27.4]} 29.
Qxf6 {[%clk 0:00:59.8]} 29... Rxf6 {[%clk 0:01:25.9]} 30. Rxd5 {[%clk
0:00:59.3]} 30... g5 {[%clk 0:01:22.2]} 31. Nh5 {[%clk 0:00:57.1]} 31... Rf7
{[%clk 0:01:20.7]} 32. Rd6 {[%clk 0:00:40.9]} 32... Rc8 {[%clk 0:01:08.1]} 33.
Kg2 {[%clk 0:00:38.7]} 33... b5 {[%clk 0:01:08.3]} 34. Rd5 {[%clk 0:00:32.3]}
34... c4 {[%clk 0:01:06.6]} 35. bxc4 {[%clk 0:00:28.1]} 35... bxc4 {[%clk
0:01:07.5]} 36. Rd1 {[%clk 0:00:28]} 36... c3 {[%clk 0:01:07.5]} 37. Rc1 {[%clk
0:00:28]} 37... c2 {[%clk 0:01:07.4]} 38. h4 {[%clk 0:00:27.1]} 38... Rb7 {[%clk
0:01:04.2]} 39. Nf4 {[%clk 0:00:26]} 39... gxf4 {[%clk 0:01:03.5]} 0-1

[Event "Early-Titled-Tuesday-Blitz-February-06-2024"]
[Site "Chess.com"]
[Date "2024.02.06"]
[Round "9"]
[White "yaguigor"]
[Black "wyharga"]
[Result "0-1"]
[WhiteElo "2740"]
[BlackElo "2589"]
[TimeControl "180+1"]
[EndTime "9:43:28 PST"]
[Termination "wyharga won by resignation"]

1. Nf3 {[%clk 0:03:00.9]} 1... d5 {[%clk 0:02:59.4]} 2. d4 {[%clk 0:02:59.6]}
2... Nf6 {[%clk 0:02:58.5]} 3. c4 {[%clk 0:02:59.1]} 3... e6 {[%clk 0:02:58.8]}
4. Nc3 {[%clk 0:02:57.2]} 4... Be7 {[%clk 0:02:59.1]} 5. Bf4 {[%clk 0:02:57.2]}
5... O-O {[%clk 0:02:58.6]} 6. e3 {[%clk 0:02:57.4]} 6... c5 {[%clk 0:02:58.6]}
7. dxc5 {[%clk 0:02:57]} 7... Bxc5 {[%clk 0:02:59]} 8. Qc2 {[%clk 0:02:56.9]}
8... Nc6 {[%clk 0:02:55.9]} 9. a3 {[%clk 0:02:55.6]} 9... Re8 {[%clk 0:02:55.4]}
10. Rd1 {[%clk 0:02:53.3]} 10... e5 {[%clk 0:02:55.5]} 11. Bg5 {[%clk
0:02:51.5]} 11... d4 {[%clk 0:02:55.5]} 12. Nd5 {[%clk 0:02:47]} 12... Be6
{[%clk 0:02:06.9]} 13. Bxf6 {[%clk 0:02:29.9]} 13... gxf6 {[%clk 0:02:05.5]} 14.
Bd3 {[%clk 0:02:30]} 14... h6 {[%clk 0:02:00.7]} 15. b4 {[%clk 0:02:20.6]} 15...
Bf8 {[%clk 0:01:58.2]} 16. exd4 {[%clk 0:02:19.1]} 16... Bxd5 {[%clk 0:01:55]}
17. cxd5 {[%clk 0:02:16.5]} 17... e4 {[%clk 0:01:49.7]} 18. Bxe4 {[%clk
0:02:08.9]} 18... Qxd5 {[%clk 0:01:48.9]} 19. O-O {[%clk 0:01:51.6]} 19... Rxe4
{[%clk 0:01:47.6]} 20. Nd2 {[%clk 0:01:45.1]} 20... Rxd4 {[%clk 0:01:45.6]} 21.
Nf3 {[%clk 0:01:41.2]} 21... Rxd1 {[%clk 0:01:44.8]} 22. Rxd1 {[%clk 0:01:42.1]}
22... Qe6 {[%clk 0:01:43.7]} 23. Re1 {[%clk 0:01:40.3]} 23... Qd7 {[%clk
0:01:34.7]} 24. Rd1 {[%clk 0:01:39.2]} 24... Qe7 {[%clk 0:01:32.4]} 25. Re1
{[%clk 0:01:38.4]} 25... Qd6 {[%clk 0:01:32.2]} 26. Rd1 {[%clk 0:01:38]} 26...
Qf4 {[%clk 0:01:32]} 27. b5 {[%clk 0:01:34.7]} 27... Ne5 {[%clk 0:01:30.8]} 28.
Nd4 {[%clk 0:01:34]} 28... Rd8 {[%clk 0:01:28.7]} 29. g3 {[%clk 0:01:18.2]}
29... Qg4 {[%clk 0:01:27.1]} 30. f3 {[%clk 0:01:10.2]} 30... Qc8 {[%clk
0:01:24.9]} 31. Qxc8 {[%clk 0:01:04.2]} 31... Rxc8 {[%clk 0:01:24.3]} 32. Nf5
{[%clk 0:01:05]} 32... Nxf3+ {[%clk 0:01:22.5]} 33. Kg2 {[%clk 0:01:02.8]} 33...
Ne5 {[%clk 0:01:22.7]} 34. a4 {[%clk 0:01:00.4]} 34... h5 {[%clk 0:01:22.5]} 35.
h4 {[%clk 0:00:59.6]} 35... Rc2+ {[%clk 0:01:21.3]} 36. Kf1 {[%clk 0:00:56.3]}
36... Rc8 {[%clk 0:01:13.5]} 37. Ke2 {[%clk 0:00:54.6]} 37... Kh7 {[%clk
0:01:13.7]} 38. Ne3 {[%clk 0:00:46.9]} 38... Kg6 {[%clk 0:01:11.4]} 39. Nd5
{[%clk 0:00:46.9]} 39... Rc4 {[%clk 0:01:05]} 40. a5 {[%clk 0:00:45.7]} 40...
Bc5 {[%clk 0:01:01.9]} 41. Rf1 {[%clk 0:00:43.5]} 41... Re4+ {[%clk 0:01:00.3]}
0-1

[Event "Early-Titled-Tuesday-Blitz-February-06-2024"]
[Site "Chess.com"]
[Date "2024.02.06"]
[Round "9"]
[White "guillembaches"]
[Black "maciek_92"]
[Result "0-1"]
[WhiteElo "2565"]
[BlackElo "2784"]
[TimeControl "180+1"]
[EndTime "9:43:32 PST"]
[Termination "maciek_92 won on time"]

1. d4 {[%clk 0:03:00.9]} 1... d5 {[%clk 0:02:59]} 2. Nf3 {[%clk 0:03:01]} 2...
Nf6 {[%clk 0:02:59.1]} 3. Bg5 {[%clk 0:03:01.4]} 3... c5 {[%clk 0:02:58.9]} 4.
e3 {[%clk 0:03:01.2]} 4... Nc6 {[%clk 0:02:58.9]} 5. Nbd2 {[%clk 0:02:59]} 5...
cxd4 {[%clk 0:02:54.5]} 6. exd4 {[%clk 0:02:59]} 6... Bf5 {[%clk 0:02:55.3]} 7.
c3 {[%clk 0:02:57.6]} 7... e6 {[%clk 0:02:55.7]} 8. Be2 {[%clk 0:02:53.9]} 8...
Bd6 {[%clk 0:02:55.4]} 9. O-O {[%clk 0:02:53.4]} 9... h6 {[%clk 0:02:55]} 10.
Bh4 {[%clk 0:02:52.7]} 10... O-O {[%clk 0:02:54.9]} 11. Re1 {[%clk 0:02:52.4]}
11... a6 {[%clk 0:02:51]} 12. Nf1 {[%clk 0:02:45.7]} 12... g5 {[%clk 0:02:44.7]}
13. Bg3 {[%clk 0:02:44.3]} 13... Be7 {[%clk 0:02:43.9]} 14. Bd3 {[%clk
0:02:32.8]} 14... Ne4 {[%clk 0:02:43.7]} 15. Ne3 {[%clk 0:02:31.2]} 15... Bh7
{[%clk 0:02:42.6]} 16. Ne5 {[%clk 0:02:19.7]} 16... f5 {[%clk 0:02:23.7]} 17.
Bxe4 {[%clk 0:01:45.3]} 17... dxe4 {[%clk 0:02:15]} 18. Nxc6 {[%clk 0:01:43.3]}
18... bxc6 {[%clk 0:02:14.7]} 19. Be5 {[%clk 0:01:43.6]} 19... Bg6 {[%clk
0:02:12.5]} 20. Qa4 {[%clk 0:01:35.3]} 20... Qb6 {[%clk 0:01:47.3]} 21. b4
{[%clk 0:01:27.8]} 21... f4 {[%clk 0:01:39.8]} 22. Nc4 {[%clk 0:01:22.9]} 22...
Qb5 {[%clk 0:01:39.8]} 23. Qb3 {[%clk 0:01:19.7]} 23... Rae8 {[%clk 0:01:09.9]}
24. Nd6 {[%clk 0:01:00.3]} 24... Bxd6 {[%clk 0:01:08.4]} 25. Bxd6 {[%clk
0:01:00.7]} 25... Rf7 {[%clk 0:01:09.3]} 26. c4 {[%clk 0:00:56.9]} 26... Qf5
{[%clk 0:01:08.8]} 27. Rad1 {[%clk 0:00:45.7]} 27... f3 {[%clk 0:01:07.3]} 28.
d5 {[%clk 0:00:43.5]} 28... e5 {[%clk 0:01:03.1]} 29. dxc6 {[%clk 0:00:35.3]}
29... Qg4 {[%clk 0:01:02.5]} 0-1

[Event "Early-Titled-Tuesday-Blitz-February-06-2024"]
[Site "Chess.com"]
[Date "2024.02.06"]
[Round "9"]
[White "ChainedDowntohell"]
[Black "ExchangeAB"]
[Result "1-0"]
[WhiteElo "2556"]
[BlackElo "2429"]
[TimeControl "180+1"]
[EndTime "9:43:34 PST"]
[Termination "ChainedDowntohell won by resignation"]

1. d4 {[%clk 0:03:00.9]} 1... Nf6 {[%clk 0:02:56.8]} 2. c4 {[%clk 0:03:00.8]}
2... c6 {[%clk 0:02:54.3]} 3. Bg5 {[%clk 0:02:56.5]} 3... d5 {[%clk 0:02:50.5]}
4. Bxf6 {[%clk 0:02:55.8]} 4... gxf6 {[%clk 0:02:49.8]} 5. e3 {[%clk 0:02:54.1]}
5... Bf5 {[%clk 0:02:47.8]} 6. Nc3 {[%clk 0:02:53.2]} 6... e6 {[%clk 0:02:47.8]}
7. Bd3 {[%clk 0:02:47]} 7... Bg6 {[%clk 0:02:42.4]} 8. Nge2 {[%clk 0:02:45.8]}
8... Nd7 {[%clk 0:02:40.6]} 9. O-O {[%clk 0:02:39.5]} 9... a6 {[%clk 0:02:40.7]}
10. Rc1 {[%clk 0:02:35.6]} 10... Bd6 {[%clk 0:02:40.4]} 11. f4 {[%clk
0:02:09.2]} 11... Bxd3 {[%clk 0:02:30.7]} 12. Qxd3 {[%clk 0:02:08.8]} 12... f5
{[%clk 0:02:31.6]} 13. c5 {[%clk 0:01:59.9]} 13... Bc7 {[%clk 0:02:23.7]} 14. b4
{[%clk 0:01:59.3]} 14... Qh4 {[%clk 0:02:22.1]} 15. Kh1 {[%clk 0:01:55.2]} 15...
Rg8 {[%clk 0:02:17.8]} 16. a4 {[%clk 0:01:39.9]} 16... Nf6 {[%clk 0:02:17.5]}
17. Ng1 {[%clk 0:00:53.3]} 17... Kd7 {[%clk 0:02:05.6]} 18. Nf3 {[%clk 0:00:50]}
18... Qh5 {[%clk 0:02:04.8]} 19. b5 {[%clk 0:00:44.6]} 19... axb5 {[%clk
0:02:03.1]} 20. axb5 {[%clk 0:00:45.5]} 20... Ra3 {[%clk 0:01:43.1]} 21. b6
{[%clk 0:00:38.7]} 21... Bb8 {[%clk 0:01:39.3]} 22. Ra1 {[%clk 0:00:30.5]} 22...
Rxc3 {[%clk 0:01:28.8]} 23. Qxc3 {[%clk 0:00:31.4]} 23... Ne4 {[%clk 0:01:28.5]}
24. Qc2 {[%clk 0:00:20.6]} 24... Ng3+ {[%clk 0:01:27.5]} 25. Kg1 {[%clk
0:00:20.6]} 25... Nxf1 {[%clk 0:01:27.7]} 26. Kxf1 {[%clk 0:00:15.4]} 26... Qg4
{[%clk 0:01:19.2]} 27. Ra8 {[%clk 0:00:10.3]} 27... h5 {[%clk 0:01:14.8]} 28.
Rxb8 {[%clk 0:00:10.1]} 28... Rxb8 {[%clk 0:00:57.7]} 29. Ne5+ {[%clk 0:00:10]}
29... Ke7 {[%clk 0:00:58.6]} 30. Nxg4 {[%clk 0:00:10.8]} 30... hxg4 {[%clk
0:00:59.4]} 31. Qa2 {[%clk 0:00:11.2]} 31... Kd8 {[%clk 0:00:58.5]} 32. Qa7
{[%clk 0:00:11.6]} 32... Kc8 {[%clk 0:00:57.1]} 33. h4 {[%clk 0:00:11.1]} 33...
gxh3 {[%clk 0:00:56.9]} 34. gxh3 {[%clk 0:00:12]} 1-0

[Event "Early-Titled-Tuesday-Blitz-February-06-2024"]
[Site "Chess.com"]
[Date "2024.02.06"]
[Round "9"]
[White "gmcorrales"]
[Black "lilleper1"]
[Result "0-1"]
[WhiteElo "2872"]
[BlackElo "2929"]
[TimeControl "180+1"]
[EndTime "9:43:35 PST"]
[Termination "lilleper1 won by checkmate"]

1. e4 {[%clk 0:03:00.9]} 1... c5 {[%clk 0:02:59.9]} 2. Nf3 {[%clk 0:02:59.1]}
2... d6 {[%clk 0:03:00.4]} 3. d4 {[%clk 0:02:58.8]} 3... cxd4 {[%clk 0:03:01.3]}
4. Nxd4 {[%clk 0:02:58.7]} 4... Nf6 {[%clk 0:03:02]} 5. Nc3 {[%clk 0:02:59.1]}
5... a6 {[%clk 0:03:02.6]} 6. Bg5 {[%clk 0:02:58.7]} 6... Nbd7 {[%clk
0:03:02.3]} 7. Qe2 {[%clk 0:02:58]} 7... b5 {[%clk 0:03:00.6]} 8. O-O-O {[%clk
0:02:54.5]} 8... Bb7 {[%clk 0:03:00.6]} 9. a3 {[%clk 0:02:46.7]} 9... Rc8 {[%clk
0:03:00]} 10. Bd2 {[%clk 0:02:38.9]} 10... e6 {[%clk 0:02:48.8]} 11. Kb1 {[%clk
0:02:37.4]} 11... Qb6 {[%clk 0:02:44.2]} 12. Nb3 {[%clk 0:02:33.1]} 12... Ne5
{[%clk 0:02:41.7]} 13. Be3 {[%clk 0:02:10.9]} 13... Qc7 {[%clk 0:02:41.2]} 14.
Bd4 {[%clk 0:02:11.2]} 14... Be7 {[%clk 0:02:33.7]} 15. g4 {[%clk 0:01:25.7]}
15... Nexg4 {[%clk 0:02:18.1]} 16. Rg1 {[%clk 0:01:20.5]} 16... e5 {[%clk
0:02:18.3]} 17. Rxg4 {[%clk 0:01:19.3]} 17... exd4 {[%clk 0:02:04.9]} 18. Nxd4
{[%clk 0:01:17.9]} 18... Nxg4 {[%clk 0:01:56]} 19. Qxg4 {[%clk 0:01:18.8]} 19...
O-O {[%clk 0:01:52.2]} 20. Nf5 {[%clk 0:01:19.1]} 20... g6 {[%clk 0:01:38.7]}
21. Bd3 {[%clk 0:01:04.7]} 21... Bf6 {[%clk 0:01:36.7]} 22. Ne2 {[%clk
0:00:59.8]} 22... d5 {[%clk 0:01:31.6]} 23. exd5 {[%clk 0:00:46.2]} 23... Bxd5
{[%clk 0:01:30.9]} 24. Nf4 {[%clk 0:00:46]} 24... Qe5 {[%clk 0:01:23.9]} 25. c3
{[%clk 0:00:46]} 25... Rxc3 {[%clk 0:01:15.7]} 26. bxc3 {[%clk 0:00:11.6]} 26...
Qxc3 {[%clk 0:01:15.9]} 27. Ne7+ {[%clk 0:00:12.1]} 27... Kh8 {[%clk 0:00:47.5]}
28. Qe2 {[%clk 0:00:10.7]} 28... Qa1+ {[%clk 0:00:42.5]} 29. Kc2 {[%clk
0:00:10.1]} 29... Qb2# {[%clk 0:00:43.1]} 0-1

[Event "Early-Titled-Tuesday-Blitz-February-06-2024"]
[Site "Chess.com"]
[Date "2024.02.06"]
[Round "9"]
[White "maximnovik"]
[Black "N4700000"]
[Result "1-0"]
[WhiteElo "2595"]
[BlackElo "2426"]
[TimeControl "180+1"]
[EndTime "9:43:36 PST"]
[Termination "maximnovik won on time"]

1. e4 {[%clk 0:03:00.9]} 1... d6 {[%clk 0:03:00.3]} 2. d4 {[%clk 0:02:59.7]}
2... Nf6 {[%clk 0:03:00.6]} 3. Nc3 {[%clk 0:02:58.7]} 3... e5 {[%clk 0:02:58.6]}
4. Nf3 {[%clk 0:02:55.3]} 4... Nbd7 {[%clk 0:02:56]} 5. Bc4 {[%clk 0:02:54.9]}
5... Be7 {[%clk 0:02:56.6]} 6. O-O {[%clk 0:02:55]} 6... O-O {[%clk 0:02:57]} 7.
Re1 {[%clk 0:02:54.4]} 7... exd4 {[%clk 0:02:51.4]} 8. Nxd4 {[%clk 0:02:53.3]}
8... Nb6 {[%clk 0:02:50.4]} 9. Bf1 {[%clk 0:02:52.2]} 9... c5 {[%clk 0:02:42.4]}
10. Nde2 {[%clk 0:02:41.6]} 10... d5 {[%clk 0:02:37.3]} 11. exd5 {[%clk
0:02:16.1]} 11... Nbxd5 {[%clk 0:02:36.7]} 12. Nxd5 {[%clk 0:02:12.8]} 12...
Nxd5 {[%clk 0:02:34.2]} 13. c3 {[%clk 0:01:54.5]} 13... Be6 {[%clk 0:02:12.5]}
14. g3 {[%clk 0:01:49.1]} 14... Qb6 {[%clk 0:01:52.3]} 15. Bg2 {[%clk 0:01:49]}
15... Rfd8 {[%clk 0:01:49.1]} 16. Qc2 {[%clk 0:01:49.1]} 16... Rd7 {[%clk
0:01:31.5]} 17. Nf4 {[%clk 0:01:36.8]} 17... Nxf4 {[%clk 0:01:30.6]} 18. Bxf4
{[%clk 0:01:36.1]} 18... Rad8 {[%clk 0:01:30.4]} 19. h4 {[%clk 0:01:28.3]} 19...
h6 {[%clk 0:01:25.1]} 20. Be4 {[%clk 0:01:21.1]} 20... Bf6 {[%clk 0:01:23.6]}
21. Qe2 {[%clk 0:01:11.2]} 21... Bd5 {[%clk 0:00:49.9]} 22. Bc2 {[%clk
0:01:07.6]} 22... Qe6 {[%clk 0:00:37.8]} 23. Qd3 {[%clk 0:01:05.1]} 23... g5
{[%clk 0:00:06.1]} 24. Qh7+ {[%clk 0:01:00.9]} 24... Kf8 {[%clk 0:00:06.4]} 25.
Rxe6 {[%clk 0:00:58]} 25... Bxe6 {[%clk 0:00:05.2]} 26. Qxh6+ {[%clk 0:00:53.8]}
26... Bg7 {[%clk 0:00:05]} 27. Qxg5 {[%clk 0:00:54]} 1-0

[Event "Early-Titled-Tuesday-Blitz-February-06-2024"]
[Site "Chess.com"]
[Date "2024.02.06"]
[Round "9"]
[White "Jojo_898"]
[Black "Nouali_Mohamed"]
[Result "1-0"]
[WhiteElo "2464"]
[BlackElo "2552"]
[TimeControl "180+1"]
[EndTime "9:43:39 PST"]
[Termination "Jojo_898 won on time"]

1. e4 {[%clk 0:03:00.9]} 1... c5 {[%clk 0:02:59.6]} 2. Nf3 {[%clk 0:03:00.5]}
2... Nc6 {[%clk 0:02:59.9]} 3. c3 {[%clk 0:03:00.3]} 3... d5 {[%clk 0:03:00]} 4.
exd5 {[%clk 0:02:59.4]} 4... Qxd5 {[%clk 0:03:00.9]} 5. d4 {[%clk 0:03:00]} 5...
Bg4 {[%clk 0:03:01.5]} 6. Be2 {[%clk 0:03:00.4]} 6... e6 {[%clk 0:03:01.4]} 7.
O-O {[%clk 0:03:00.5]} 7... Nf6 {[%clk 0:03:01.7]} 8. Be3 {[%clk 0:03:00.4]}
8... cxd4 {[%clk 0:03:02]} 9. cxd4 {[%clk 0:03:01]} 9... Bd6 {[%clk 0:03:02.4]}
10. Nc3 {[%clk 0:03:00.9]} 10... Qh5 {[%clk 0:03:02.6]} 11. Re1 {[%clk
0:02:49.5]} 11... Bxf3 {[%clk 0:03:01.4]} 12. Bxf3 {[%clk 0:02:49.6]} 12...
Qxh2+ {[%clk 0:03:01.4]} 13. Kf1 {[%clk 0:02:50.3]} 13... O-O {[%clk 0:02:51.1]}
14. Ne4 {[%clk 0:02:48]} 14... Nxe4 {[%clk 0:02:42.8]} 15. Bxe4 {[%clk
0:02:48.5]} 15... Rad8 {[%clk 0:01:56.2]} 16. Qf3 {[%clk 0:02:46.2]} 16... Nb4
{[%clk 0:01:35.8]} 17. Ke2 {[%clk 0:02:44.4]} 17... f5 {[%clk 0:01:02.4]} 18.
Rh1 {[%clk 0:02:14.2]} 18... fxe4 {[%clk 0:00:32.5]} 19. Qxe4 {[%clk 0:02:14.1]}
19... Qxh1 {[%clk 0:00:23.5]} 20. Rxh1 {[%clk 0:02:12.8]} 20... h6 {[%clk
0:00:06.2]} 21. Qxe6+ {[%clk 0:02:11.1]} 21... Rf7 {[%clk 0:00:04.5]} 22. Rh3
{[%clk 0:02:04.2]} 22... Bf8 {[%clk 0:00:03.3]} 23. Rf3 {[%clk 0:02:02.1]} 23...
Rd7 {[%clk 0:00:03.7]} 24. Rg3 {[%clk 0:01:47.2]} 24... Re7 {[%clk 0:00:04]} 25.
Qb3 {[%clk 0:01:46.6]} 25... Nc6 {[%clk 0:00:03.8]} 26. Kf1 {[%clk 0:01:45.3]}
26... a5 {[%clk 0:00:02.9]} 27. Qc4 {[%clk 0:01:40.7]} 27... Kh8 {[%clk
0:00:02.9]} 28. Qb5 {[%clk 0:01:33.6]} 28... Rd7 {[%clk 0:00:03.2]} 29. Qh5
{[%clk 0:01:31.2]} 29... Bd6 {[%clk 0:00:03.4]} 30. Bxh6 {[%clk 0:01:25.3]}
30... gxh6 {[%clk 0:00:02.2]} 31. Qxh6+ {[%clk 0:01:25.4]} 31... Rh7 {[%clk
0:00:02.6]} 32. Qf6+ {[%clk 0:01:25.8]} 32... Rhg7 {[%clk 0:00:02.9]} 33. Rxg7
{[%clk 0:01:25.2]} 33... Rxg7 {[%clk 0:00:03.7]} 34. Qxd6 {[%clk 0:01:25.8]}
34... Kh7 {[%clk 0:00:03.5]} 35. Qh2+ {[%clk 0:01:24.9]} 35... Kg8 {[%clk
0:00:03.6]} 36. d5 {[%clk 0:01:25]} 36... Ne7 {[%clk 0:00:02.8]} 37. Qb8+ {[%clk
0:01:25.2]} 37... Kh7 {[%clk 0:00:02.6]} 38. Qxb7 {[%clk 0:01:25.2]} 38... Ng6
{[%clk 0:00:01.4]} 39. Qb5 {[%clk 0:01:24.8]} 1-0

[Event "Early-Titled-Tuesday-Blitz-February-06-2024"]
[Site "Chess.com"]
[Date "2024.02.06"]
[Round "9"]
[White "LeoWin2012"]
[Black "IsaqueGoncalvesSanto"]
[Result "0-1"]
[WhiteElo "2136"]
[BlackElo "1868"]
[TimeControl "180+1"]
[EndTime "9:43:43 PST"]
[Termination "IsaqueGoncalvesSanto won by resignation"]

1. e4 {[%clk 0:03:00.9]} 1... e6 {[%clk 0:03:00.1]} 2. d4 {[%clk 0:03:00.7]}
2... d5 {[%clk 0:03:00.5]} 3. Nc3 {[%clk 0:03:00.9]} 3... Bb4 {[%clk 0:02:59.2]}
4. e5 {[%clk 0:02:57.5]} 4... Qd7 {[%clk 0:02:59.3]} 5. Qg4 {[%clk 0:02:56.3]}
5... f5 {[%clk 0:02:58]} 6. Qg3 {[%clk 0:02:51.4]} 6... b6 {[%clk 0:02:57.4]} 7.
h4 {[%clk 0:02:41.7]} 7... Ba6 {[%clk 0:02:52.5]} 8. Bxa6 {[%clk 0:02:37]} 8...
Nxa6 {[%clk 0:02:51.2]} 9. h5 {[%clk 0:02:37.6]} 9... Nh6 {[%clk 0:02:40]} 10.
Bxh6 {[%clk 0:02:35.9]} 10... gxh6 {[%clk 0:02:40.1]} 11. Ne2 {[%clk 0:02:28.3]}
11... O-O-O {[%clk 0:02:31.1]} 12. O-O-O {[%clk 0:02:26.1]} 12... c5 {[%clk
0:02:28.5]} 13. Qf4 {[%clk 0:02:22.8]} 13... Rdg8 {[%clk 0:02:20.6]} 14. g3
{[%clk 0:02:18.1]} 14... Rg4 {[%clk 0:02:14.8]} 15. Qxh6 {[%clk 0:02:14.4]}
15... cxd4 {[%clk 0:02:12.5]} 16. f3 {[%clk 0:01:58.4]} 16... Bf8 {[%clk
0:01:39.9]} 17. Qd2 {[%clk 0:01:20.9]} 17... dxc3 {[%clk 0:01:38.2]} 18. Qxc3+
{[%clk 0:01:20.1]} 18... Rc4 {[%clk 0:01:37.8]} 19. Qd2 {[%clk 0:01:16.6]} 19...
Nb4 {[%clk 0:01:31.9]} 20. Nc3 {[%clk 0:01:15]} 20... d4 {[%clk 0:01:25.9]} 21.
Kb1 {[%clk 0:00:58.7]} 21... Qc6 {[%clk 0:01:14.1]} 22. a3 {[%clk 0:00:49]}
22... Nxc2 {[%clk 0:01:06.1]} 23. Kxc2 {[%clk 0:00:43.6]} 23... Bxa3 {[%clk
0:01:04.7]} 24. bxa3 {[%clk 0:00:39.6]} 24... Rxc3+ {[%clk 0:01:04.7]} 25. Kb1
{[%clk 0:00:39.7]} 25... Qb5+ {[%clk 0:01:03.4]} 26. Ka1 {[%clk 0:00:29.4]}
26... Rxa3+ {[%clk 0:01:01.2]} 27. Qa2 {[%clk 0:00:28]} 27... Rxa2+ {[%clk
0:00:59.8]} 28. Kxa2 {[%clk 0:00:28.9]} 28... Qa4+ {[%clk 0:00:59.2]} 29. Kb2
{[%clk 0:00:29.3]} 29... Qb4+ {[%clk 0:00:59.1]} 30. Ka2 {[%clk 0:00:30.2]}
30... Qc4+ {[%clk 0:00:58.2]} 31. Kb2 {[%clk 0:00:30.2]} 31... Qc3+ {[%clk
0:00:58.2]} 32. Ka2 {[%clk 0:00:30.1]} 32... Qc2+ {[%clk 0:00:57.4]} 33. Ka3
{[%clk 0:00:29.5]} 33... Kb7 {[%clk 0:00:56.2]} 34. Rxd4 {[%clk 0:00:28.7]}
34... Qc3+ {[%clk 0:00:55.6]} 35. Ka2 {[%clk 0:00:29]} 35... Qxd4 {[%clk
0:00:55.6]} 36. h6 {[%clk 0:00:28.9]} 36... Rc8 {[%clk 0:00:53]} 37. Rc1 {[%clk
0:00:25.1]} 37... Rxc1 {[%clk 0:00:51.7]} 38. Kb3 {[%clk 0:00:26]} 38... Rc3+
{[%clk 0:00:50.9]} 39. Kb2 {[%clk 0:00:26.9]} 39... Qd2+ {[%clk 0:00:50.4]} 0-1

[Event "Early-Titled-Tuesday-Blitz-February-06-2024"]
[Site "Chess.com"]
[Date "2024.02.06"]
[Round "9"]
[White "The_Straightforward_Rook"]
[Black "tandaleo"]
[Result "1-0"]
[WhiteElo "2418"]
[BlackElo "2531"]
[TimeControl "180+1"]
[EndTime "9:43:44 PST"]
[Termination "The_Straightforward_Rook won by resignation"]

1. e4 {[%clk 0:03:00.9]} 1... g6 {[%clk 0:02:57.7]} 2. d4 {[%clk 0:02:59.4]}
2... d6 {[%clk 0:02:58.1]} 3. c4 {[%clk 0:02:58.5]} 3... Bg7 {[%clk 0:02:57.7]}
4. Nc3 {[%clk 0:02:58.5]} 4... e5 {[%clk 0:02:55.5]} 5. d5 {[%clk 0:02:57]} 5...
Nd7 {[%clk 0:02:55.6]} 6. h4 {[%clk 0:02:56.6]} 6... h6 {[%clk 0:02:51.9]} 7.
Bd3 {[%clk 0:02:53.1]} 7... Ne7 {[%clk 0:02:50.7]} 8. Nge2 {[%clk 0:02:52.6]}
8... Nc5 {[%clk 0:02:49.6]} 9. Bc2 {[%clk 0:02:51.8]} 9... a5 {[%clk 0:02:49.9]}
10. b3 {[%clk 0:02:51.4]} 10... f5 {[%clk 0:02:48.3]} 11. h5 {[%clk 0:02:47.3]}
11... g5 {[%clk 0:02:47.2]} 12. exf5 {[%clk 0:02:43.3]} 12... Nxf5 {[%clk
0:02:45.1]} 13. Bb2 {[%clk 0:02:33.6]} 13... O-O {[%clk 0:02:38.5]} 14. Qd2
{[%clk 0:02:25.1]} 14... Nd4 {[%clk 0:02:34.1]} 15. Bg6 {[%clk 0:02:10]} 15...
Qf6 {[%clk 0:02:10.4]} 16. Ng3 {[%clk 0:02:08.8]} 16... Qf4 {[%clk 0:01:44.3]}
17. Qxf4 {[%clk 0:02:01.1]} 17... exf4 {[%clk 0:01:44.2]} 18. Nge2 {[%clk
0:01:53]} 18... Re8 {[%clk 0:01:26.6]} 19. Rb1 {[%clk 0:01:41]} 19... Re7 {[%clk
0:01:16.7]} 20. Kf1 {[%clk 0:01:37.2]} 20... Nxe2 {[%clk 0:01:02.1]} 21. Nxe2
{[%clk 0:01:38.1]} 21... Bxb2 {[%clk 0:00:51.6]} 22. Rxb2 {[%clk 0:01:39]} 22...
Bd7 {[%clk 0:00:48.3]} 23. Nd4 {[%clk 0:01:32.9]} 23... Be8 {[%clk 0:00:20.2]}
24. Re2 {[%clk 0:01:16.7]} 24... Bxg6 {[%clk 0:00:18.1]} 25. Rxe7 {[%clk
0:01:13.3]} 25... Bd3+ {[%clk 0:00:17]} 26. Ke1 {[%clk 0:01:12.9]} 26... Kf8
{[%clk 0:00:10.7]} 27. Rxc7 {[%clk 0:01:07.1]} 27... Re8+ {[%clk 0:00:10.8]} 28.
Ne6+ {[%clk 0:01:06.8]} 28... Nxe6 {[%clk 0:00:09.6]} 29. dxe6 {[%clk
0:01:07.7]} 29... Rxe6+ {[%clk 0:00:10]} 30. Kd2 {[%clk 0:01:08.6]} 30... Bf5
{[%clk 0:00:07.3]} 31. Re1 {[%clk 0:01:08.6]} 31... Rxe1 {[%clk 0:00:06.9]} 32.
Kxe1 {[%clk 0:01:09.5]} 32... Bg4 {[%clk 0:00:07.3]} 33. Rxb7 {[%clk 0:01:09.2]}
33... Bxh5 {[%clk 0:00:08.1]} 34. Ra7 {[%clk 0:01:09.6]} 34... Be8 {[%clk
0:00:06.7]} 35. Rxa5 {[%clk 0:01:09.7]} 35... Bc6 {[%clk 0:00:06.9]} 36. f3
{[%clk 0:01:07.7]} 36... h5 {[%clk 0:00:06.7]} 37. Rxg5 {[%clk 0:01:07.1]} 1-0